bitfinex/quotes_ETHUSD_20260102
["timestamp","ask_amount","ask_price","bid_price","bid_amount"]
[1767365357570,0.03320783,3080.2,3078.6,0.001]
[1767365357770,10.11832114,3080.2,3078.6,0.001]
[1767365357977,0.03320783,3080.1,3078.6,0.001]
[1767365358187,9.23611331,3080.0,3078.6,0.001]
[1767365358469,0.03320783,3080.1,3078.2,0.001]
[1767365358470,9.23611331,3079.8,3078.2,0.001]
[1767365358667,9.23611331,3079.6,3078.2,0.001]
[1767365358865,0.09512251,3079.0,3076.1,9.21991118]
[1767365359039,9.23611331,3078.6,3076.2,6.50150987]
[1767365359233,0.849,3078.5,3076.6,9.21991118]
[1767365359432,9.88390877,3078.6,3076.7,0.03250235]
[1767365359634,9.23611331,3078.4,3075.9,12.47095263]
[1767365359853,9.23611331,3078.4,3075.9,9.21991118]
[1767365360068,9.23611331,3078.4,3075.8,0.849]
[1767365360069,9.23611331,3078.2,3075.8,0.849]
[1767365360361,9.23611331,3078.0,3075.8,0.849]
[1767365360664,0.849,3077.9,3075.9,9.21991118]
[1767365360872,10.08511331,3077.9,3075.8,0.849]
[1767365361069,9.23611331,3077.7,3075.8,0.849]
[1767365361473,0.849,3077.6,3075.8,0.849]
[1767365361676,9.23611331,3077.7,3075.9,1.00689112]
[1767365361832,9.23611331,3077.5,3075.8,0.849]
[1767365362033,0.92693211,3078.1,3076.0,9.21991118]
[1767365362403,9.23611331,3078.3,3076.2,9.21991118]
[1767365362404,0.849,3078.2,3076.2,9.21991118]
[1767365362571,10.08511331,3078.2,3076.2,9.21991118]
[1767365362749,10.08511331,3078.2,3078.1,0.001]
[1767365363068,10.08511331,3078.2,3076.9,0.001]
[1767365363234,0.849,3078.1,3076.9,0.001]
[1767365363645,9.23611331,3078.1,3076.9,0.001]
[1767365363973,2.58496205,3078.1,3076.9,0.001]
[1767365364173,9.23611331,3079.7,3077.0,9.21991118]
[1767365364486,0.88220783,3079.6,3077.4,9.21991118]
[1767365364641,10.11832114,3079.6,3077.5,0.8824939]
[1767365364952,9.23611331,3079.5,3077.4,9.21991118]
[1767365365159,9.23611331,3078.7,3076.9,0.001]
[1767365365347,10.11832114,3078.6,3076.9,0.001]
[1767365365549,0.09512251,3079.3,3076.9,0.001]
[1767365365550,9.23611331,3078.4,3076.9,0.001]
[1767365366073,1.86083211,3078.5,3076.9,0.001]
[1767365366277,2.58496205,3078.6,3076.9,9.17588536]
[1767365366444,2.58496205,3078.6,3077.1,9.17488536]
[1767365366767,2.58496205,3078.6,3077.2,10.05738243]
[1767365366975,9.68813143,3079.6,3077.2,0.85]
[1767365367186,9.85161779,3079.4,3077.5,12.42427609]
[1767365367478,0.85,3079.7,3077.7,9.17488536]
[1767365367666,13.09827264,3080.1,3077.9,9.17488536]
[1767365367844,9.85161779,3080.1,3078.2,2.907965]
[1767365368043,9.85161779,3080.1,3078.1,9.17488536]
[1767365368044,10.73482562,3080.0,3078.1,9.17488536]
[1767365368342,9.85161779,3080.0,3078.2,0.03248651]
[1767365368547,9.85161779,3080.0,3078.3,0.92073719]
[1767365368849,9.85161779,3079.9,3078.3,0.92073719]
[1767365369052,9.85161779,3079.9,3078.3,5.01923693]
[1767365369255,2.58496205,3080.0,3078.7,9.17488536]
[1767365369483,9.85161779,3080.7,3078.7,9.17488536]
[1767365369649,9.85161779,3080.7,3078.8,10.0923739]
[1767365369988,9.85161779,3080.5,3078.8,0.91748854]
[1767365370180,0.002,3080.9,3078.9,10.02488536]
[1767365370354,0.002,3080.9,3079.3,9.17488536]
[1767365370754,0.002,3080.9,3079.4,10.02488536]
[1767365371072,0.002,3080.9,3079.5,0.85]
[1767365371273,0.002,3080.9,3078.9,3.2478953]
[1767365371274,10.70161779,3080.8,3078.9,9.17488536]
[1767365371599,11.8041874,3080.7,3079.0,0.85]
[1767365371889,2.58496205,3080.8,3079.2,9.17488536]
[1767365372179,2.58496205,3080.8,3079.2,12.42241998]
[1767365372395,2.58496205,3080.8,3079.4,3.24738585]
[1767365372675,2.58496205,3080.8,3079.5,10.02488536]
[1767365372867,2.58496205,3080.8,3079.5,9.17488536]
[1767365373185,2.58496205,3080.8,3079.6,14.18949042]
[1767365373478,9.85161779,3082.1,3080.2,9.17488536]
[1767365373693,9.85161779,3082.8,3080.6,9.17488536]
[1767365373879,9.85161779,3082.8,3080.7,0.85]
[1767365374047,9.85361779,3082.2,3079.9,5.50820602]
[1767365374251,9.85161779,3082.1,3080.2,9.17488536]
[1767365374447,10.70061779,3082.1,3080.2,9.17488536]
[1767365374671,9.85161779,3081.9,3080.2,9.17488536]
[1767365374877,0.03320783,3082.0,3080.2,9.17488536]
[1767365374878,9.85161779,3081.7,3080.2,0.85]
[1767365375086,13.09616298,3082.1,3080.2,10.02488536]
[1767365375250,2.58496205,3082.0,3079.6,0.91748854]
[1767365375452,9.85161779,3081.9,3079.7,10.02488536]
[1767365375651,9.85161779,3081.9,3080.2,3.24651754]
[1767365375880,2.58496205,3082.0,3080.4,25.25838136]
[1767365376072,2.58496205,3082.0,3080.5,9.17488536]
[1767365376273,2.58496205,3082.0,3080.6,0.91748854]
[1767365376450,2.58496205,3082.0,3080.7,0.85]
[1767365376778,9.88482562,3081.9,3080.5,0.85]
[1767365376983,9.85161779,3081.9,3080.5,0.85]
[1767365377284,2.58496205,3082.0,3080.6,9.17488536]
[1767365377888,2.58496205,3082.0,3080.7,10.02488536]
[1767365378095,0.002,3082.2,3081.1,9.17488536]
[1767365378504,0.002,3082.2,3081.2,9.211482]
[1767365378790,0.002,3082.2,3081.1,9.17488536]
[1767365379367,0.002,3082.2,3081.2,0.85]
[1767365379894,0.002,3083.3,3081.3,0.85]
[1767365380070,0.002,3083.3,3081.5,9.17488536]
[1767365380390,9.72199649,3083.3,3081.6,0.85]
[1767365380559,9.85161779,3083.1,3081.1,12.42047047]
[1767365380765,10.70061779,3083.1,3081.2,0.849]
[1767365380970,9.85161779,3082.9,3081.2,0.849]
[1767365381234,9.85161779,3082.9,3081.1,9.17488536]
[1767365381235,9.85161779,3082.9,3081.3,1.65935315]
[1767365381891,0.002,3083.4,3081.6,8.33762]
[1767365382125,2.58496205,3082.8,3081.7,0.849]
[1767365382267,2.58496205,3082.8,3081.6,9.17488536]
[1767365382465,0.03320783,3082.7,3081.3,0.81035315]
[1767365382703,0.09512251,3081.6,3078.8,0.05]
[1767365382902,9.85161779,3080.9,3078.2,9.17488536]
[1767365383080,9.85161779,3080.3,3078.4,0.849]
[1767365383473,9.85161779,3080.3,3078.5,9.17488536]
[1767365383697,9.85161779,3080.3,3078.6,10.1772739]
[1767365383865,9.85161779,3080.3,3078.7,0.849]
[1767365384066,9.85161779,3080.3,3078.8,0.849]
[1767365384776,9.85161779,3080.3,3078.3,3.24846163]
[1767365385003,9.85161779,3080.3,3078.4,10.02388536]
[1767365385203,9.85161779,3080.3,3078.5,1.3272347]
[1767365385704,9.85161779,3080.2,3078.6,0.849]
[1767365385907,9.85161779,3080.2,3078.3,9.17488536]
[1767365385908,9.85161779,3080.2,3078.3,12.42339984]
[1767365386106,9.85161779,3080.1,3077.6,9.17488536]
[1767365386322,9.85161779,3080.1,3077.9,2.813536]
[1767365386493,9.85161779,3080.1,3077.9,3.24888857]
[1767365386689,9.85161779,3080.1,3078.0,2.09137739]
[1767365386894,9.85161779,3080.1,3078.1,0.849]
[1767365387112,9.85161779,3079.9,3078.1,0.849]
[1767365387622,9.85161779,3079.9,3078.2,9.17488536]
[1767365388020,9.85161779,3079.9,3078.0,1.24237739]
[1767365388222,9.85161779,3079.9,3077.6,9.17488536]
[1767365388820,9.85161779,3079.9,3078.0,3.24876563]
[1767365389118,9.85161779,3079.8,3078.1,0.849]
[1767365389517,9.85161779,3079.8,3077.9,9.17488536]
[1767365389697,12.43657984,3079.8,3078.1,9.17488536]
[1767365389897,12.43657984,3079.8,3078.2,1.85138854]
[1767365390097,12.43657984,3079.8,3078.2,11.0262739]
[1767365390318,12.43657984,3079.8,3078.2,10.1772739]
[1767365390518,9.85161779,3079.7,3078.3,0.85]
[1767365391299,2.58496205,3079.8,3078.5,9.17488536]
[1767365391501,0.002,3080.3,3078.7,9.17488536]
[1767365391691,0.002,3080.3,3078.4,6.49688148]
[1767365391692,0.002,3080.3,3078.8,9.17488536]
[1767365391893,0.002,3080.3,3079.0,9.17488536]
[1767365392628,9.85361779,3080.3,3078.4,18.92020758]
[1767365392826,9.85361779,3080.3,3078.4,9.17488536]
[1767365393002,10.83897957,3080.3,3078.5,11.26722456]
[1767365393202,9.85361779,3080.3,3078.5,14.51555978]
[1767365393524,12.43657984,3080.2,3078.5,11.26722456]
[1767365393919,12.43657984,3080.2,3078.5,14.51553443]
[1767365394297,12.43657984,3080.2,3078.6,9.17488536]
[1767365394493,2.58496205,3080.2,3078.9,17.645027]
[1767365394695,9.85161779,3080.9,3079.0,10.93938806]
[1767365394897,9.85161779,3080.9,3079.2,9.17488536]
[1767365395126,9.85161779,3080.9,3079.3,0.03247491]
[1767365395625,9.85161779,3080.9,3079.3,3.27989328]
[1767365395825,9.85161779,3080.9,3079.4,0.85]
[1767365396031,10.83697957,3080.8,3079.5,0.85]
[1767365396200,9.85161779,3080.8,3079.2,9.17488536]
[1767365396399,9.85161779,3080.8,3079.3,4.09749131]
[1767365396621,9.85161779,3080.8,3079.3,7.34498262]
[1767365396827,9.85361779,3080.8,3079.3,16.09072158]
[1767365397030,9.85361779,3080.8,3079.3,12.84323027]
[1767365397230,9.85361779,3080.8,3079.5,3.2472804]
[1767365397430,9.85361779,3080.8,3079.4,4.85642658]
[1767365398102,0.002,3081.6,3080.1,8.74573896]
[1767365398302,0.002,3081.6,3080.3,8.74573896]
[1767365398713,0.002,3081.6,3080.4,0.85]
[1767365399109,0.002,3081.6,3079.7,8.74573896]
[1767365399110,8.8870486,3081.5,3080.5,0.85]
[1767365399313,8.8870486,3081.5,3080.6,0.85]
[1767365399501,3.24710675,3081.6,3080.6,0.85]
[1767365399502,0.002,3081.6,3080.6,0.85]
[1767365399908,0.002,3082.3,3080.7,8.74573896]
[1767365400129,8.8870486,3082.7,3080.6,4.09608663]
[1767365400130,8.72521844,3082.7,3080.8,8.74573896]
[1767365400359,8.8870486,3082.5,3080.8,8.74573896]
[1767365400673,0.002,3082.8,3080.3,8.74573896]
[1767365400674,4.59602863,3082.3,3080.3,8.74573896]
[1767365400835,8.8870486,3082.3,3080.7,26.39076596]
[1767365401023,0.002,3082.8,3080.9,8.74573896]
[1767365401228,0.002,3083.4,3081.8,4.59602863]
[1767365401425,0.002,3083.4,3082.1,13.34176759]
[1767365401624,8.28e-06,3083.8,3082.2,8.74573896]
[1767365401958,8.8870486,3084.0,3082.3,2.18417676]
[1767365402125,8.8870486,3084.3,3082.3,10.07991572]
[1767365402328,8.8870486,3084.3,3082.4,0.849]
[1767365402564,8.8870486,3084.1,3081.6,8.74573896]
[1767365402745,8.8870486,3084.1,3081.4,3.24525445]
[1767365402746,8.8870486,3084.1,3082.1,13.34176759]
[1767365402945,8.8870486,3084.1,3082.2,10.92891572]
[1767365403250,4.59602863,3084.9,3082.7,8.74573896]
[1767365403251,3.24166421,3084.9,3082.7,8.74573896]
[1767365403437,8.8870486,3084.8,3082.9,8.74573896]
[1767365403627,8.8870486,3084.8,3082.8,0.849]
[1767365403628,8.8870486,3085.9,3083.5,8.74573896]
[1767365403961,8.8870486,3085.9,3084.1,8.74573896]
[1767365404159,8.8870486,3085.9,3083.7,4.59602863]
[1767365404160,8.8870486,3085.9,3084.3,8.74573896]
[1767365404360,0.002,3084.8,3084.4,0.849]
[1767365404664,8.8810548,3086.5,3084.4,0.849]
[1767365404964,8.8870486,3086.1,3084.4,0.849]
[1767365405162,4.59602863,3086.2,3083.7,0.849]
[1767365405163,8.8870486,3085.6,3083.7,0.849]
[1767365405460,8.8870486,3086.2,3083.8,8.74573896]
[1767365406234,8.8870486,3086.2,3084.0,8.74573896]
[1767365406465,8.8870486,3086.2,3084.2,8.74573896]
[1767365406630,8.8870486,3086.2,3084.6,8.74573896]
[1767365406965,8.8870486,3087.1,3084.7,5.4104]
[1767365407147,8.8870486,3087.1,3085.0,17.645027]
[1767365407349,8.8870486,3088.6,3085.5,8.74573896]
[1767365407567,0.16918542,3088.1,3086.2,8.74573896]
[1767365407770,8.8870486,3088.6,3086.3,12.23381556]
[1767365407945,8.8870486,3088.6,3086.3,9.59473896]
[1767365408276,8.8870486,3088.6,3086.3,8.74573896]
[1767365408604,8.8870486,3088.6,3086.6,8.74573896]
[1767365408875,0.16914683,3089.9,3086.5,22.24105563]
[1767365408876,4.59602863,3090.4,3087.1,8.74573896]
[1767365409065,8.8870486,3090.0,3087.4,17.645027]
[1767365409272,0.31327129,3091.4,3088.3,4.59602863]
[1767365409273,8.8870486,3090.7,3088.3,4.59602863]
[1767365409506,8.8870486,3092.1,3089.0,8.74573896]
[1767365409781,6.46930278,3092.5,3090.2,8.74573896]
[1767365409947,0.09512251,3092.3,3090.9,8.74573896]
[1767365410144,6.46328852,3094.4,3092.7,0.09512251]
[1767365410384,6.46328852,3094.4,3090.7,0.16]
[1767365410385,0.05,3097.4,3093.0,8.74573896]
[1767365410582,0.05,3097.4,3091.2,0.16]
[1767365410583,9.68585541,3097.3,3093.9,17.645027]
[1767365410885,6.45682,3097.5,3094.4,3.23799258]
[1767365411047,6.4553695,3098.2,3095.1,3.24902576]
[1767365411244,9.56071148,3099.0,3096.2,3.24902576]
[1767365411485,9.56071148,3099.0,3096.6,3.24902576]
[1767365411486,13.48307723,3098.9,3096.6,3.24902576]
[1767365411650,8.8870486,3098.1,3094.5,3.24902576]
[1767365411848,8.8870486,3098.1,3095.7,3.67130716]
[1767365412071,8.8870486,3098.1,3095.8,0.848]
[1767365412380,8.8870486,3098.1,3094.9,0.16]
[1767365412381,1.45628395,3098.1,3095.9,0.38923161]
[1767365412558,1.45628395,3098.1,3096.0,0.848]
[1767365412756,8.8870486,3097.9,3094.2,8.74573896]
[1767365412957,8.8870486,3097.5,3094.7,0.64497378]
[1767365413180,10.166133,3097.3,3095.1,4.59602863]
[1767365413394,10.166133,3097.3,3094.7,1.03378943]
[1767365413395,6.45640312,3097.7,3094.8,4.94976565]
[1767365413551,8.8870486,3097.3,3095.3,5.76628]
[1767365413748,8.8870486,3096.9,3093.9,8.74573896]
[1767365413987,8.8870486,3096.6,3094.0,1.7225739]
[1767365414312,8.8870486,3096.6,3092.1,0.79551552]
[1767365414313,5.00257767,3096.3,3094.1,0.848]
[1767365414449,8.8870486,3096.2,3093.3,4.59602863]
[1767365414648,8.8870486,3096.2,3093.0,8.74573896]
[1767365414948,0.48493737,3097.4,3094.0,4.59602863]
[1767365415173,8.8870486,3097.1,3094.1,0.45960286]
[1767365415345,8.8870486,3096.5,3094.2,0.847]
[1767365415551,3.22911868,3096.9,3094.2,0.847]
[1767365415552,8.8870486,3097.3,3094.6,5.515306]
[1767365415751,8.8870486,3097.3,3095.0,4.59602863]
[1767365415952,8.8870486,3099.1,3095.8,8.74573896]
[1767365416185,6.217804,3099.3,3095.9,0.847]
[1767365416186,8.8870486,3098.6,3095.9,0.847]
[1767365416549,8.8870486,3098.6,3096.1,5.151455]
[1767365416754,8.8870486,3098.6,3096.2,0.847]
[1767365416963,0.08398747,3099.5,3094.2,9.69555905]
[1767365416964,8.8870486,3099.5,3096.4,8.74573896]
[1767365417191,8.8870486,3099.8,3096.9,8.74573896]
[1767365417458,8.8870486,3099.6,3097.1,15.20337244]
[1767365417758,8.8870486,3099.6,3097.2,16.72650196]
[1767365417965,8.8870486,3099.6,3097.3,3.100299]
[1767365418165,8.8870486,3099.6,3097.2,8.74573896]
[1767365418166,8.8870486,3099.6,3097.2,9.30347238]
[1767365418399,8.8870486,3099.4,3094.8,0.05]
[1767365418550,0.88870486,3099.5,3084.4,0.001]
[1767365418551,8.8870486,3098.9,3095.5,8.74573896]
[1767365418751,0.002,3097.3,3095.7,3.245387]
[1767365418970,0.002,3097.3,3095.6,8.74573896]
[1767365419171,0.002,3097.3,3095.8,0.847]
[1767365419383,0.002,3098.6,3095.8,8.74573896]
[1767365419680,4.59602863,3098.4,3095.8,9.99087736]
[1767365419881,8.8870486,3098.3,3095.8,9.99087736]
[1767365420061,8.8870486,3098.3,3095.9,0.846]
[1767365420263,8.8870486,3098.3,3096.0,3.318988]
[1767365420475,8.8870486,3097.9,3096.2,0.8]
[1767365420659,8.8870486,3097.7,3096.2,0.8]
[1767365420855,4.59602863,3096.8,3094.0,8.74573896]
[1767365421052,8.8870486,3096.2,3094.1,0.846]
[1767365421281,9.69117456,3095.6,3093.4,8.74573896]
[1767365421451,9.69117456,3095.6,3090.7,1.09446028]
[1767365421452,4.59602863,3094.8,3092.1,8.356004]
[1767365421656,8.8870486,3094.9,3092.9,8.161964]
[1767365421880,8.8870486,3094.9,3092.2,1.6816004]
[1767365421881,8.8870486,3094.9,3093.0,0.01223834]
[1767365422085,8.8870486,3094.9,3093.1,0.846]
[1767365422389,3.23039152,3095.6,3093.2,6.921603]
[1767365422596,8.8870486,3095.8,3093.4,9.96539751]
[1767365422800,0.88870486,3095.7,3093.6,2.864761]
[1767365422966,8.8870486,3095.8,3093.7,0.03232375]
[1767365423280,8.8870486,3097.4,3094.5,11.19007496]
[1767365423482,4.59602863,3097.4,3094.6,5.982906]
[1767365423682,12.91364,3097.5,3094.7,0.846]
[1767365423683,8.8870486,3096.8,3094.7,0.846]
[1767365423861,8.8870486,3096.8,3094.8,0.03225028]
[1767365424064,8.8870486,3096.8,3093.5,13.34176759]
[1767365424266,8.8870486,3096.8,3093.7,12.0942689]
[1767365424494,8.8870486,3096.3,3093.8,4.06952]
[1767365424665,8.8870486,3096.3,3093.6,3.869741]
[1767365424875,9.77575346,3096.2,3093.9,0.03232166]
[1767365425171,8.8870486,3095.7,3093.6,0.03232479]
[1767365425499,0.88870486,3096.2,3093.7,0.846]
[1767365425500,3.23060024,3095.4,3093.7,0.846]
[1767365425714,3.23060024,3095.4,3093.8,0.0323227]
[1767365425915,0.002,3098.6,3094.8,4.59602863]
[1767365426200,0.08398747,3102.7,3093.9,11.181739]
[1767365426201,8.14955739,3104.8,3100.0,7.78729544]
[1767365426365,0.97910657,3104.7,3100.3,8.08418261]
[1767365426567,0.54810657,3104.7,3101.2,8.08418261]
[1767365426767,0.004,3105.4,3102.5,4.59602863]
[1767365426995,6.52525,3108.3,3104.0,1.65308223]
[1767365427215,7.92326512,3107.1,3104.1,0.846]
[1767365427366,7.92326512,3106.9,3104.3,4.59602863]
[1767365427569,14.36057115,3106.9,3104.4,1.53520286]
[1767365427766,7.92326512,3107.9,3104.5,2.762979]
[1767365428001,0.03294967,3108.5,3105.0,7.66086794]
[1767365428173,1.627418,3111.8,3106.5,7.62170031]
[1767365428379,3.21759043,3109.7,3107.4,7.49234556]
[1767365428576,0.52017321,3109.6,3106.3,0.05]
[1767365428777,0.52017321,3109.6,3102.3,1.66429592]
[1767365428778,4.59602863,3107.3,3104.7,8.08418261]
[1767365428976,7.92326512,3107.0,3103.6,0.845]
[1767365429187,0.08398747,3108.0,3103.9,8.08418261]
[1767365429188,7.92326512,3107.8,3103.9,8.08418261]
[1767365429388,1.63775274,3109.3,3102.7,0.05]
[1767365429389,16.07975555,3109.5,3104.8,8.08418261]
[1767365429565,7.92326512,3108.3,3105.5,0.08398747]
[1767365429765,0.92898747,3108.2,3105.0,0.845]
[1767365429988,7.92326512,3108.2,3104.9,0.08398747]
[1767365430202,0.08398747,3106.8,3102.4,0.05]
[1767365430385,0.08398747,3106.8,3101.2,0.08398747]
[1767365430386,4.59602863,3105.0,3102.6,12.32699561]
[1767365430593,4.59602863,3105.0,3102.0,0.845]
[1767365430594,0.40960286,3104.9,3102.8,8.08418261]
[1767365430793,8.42336986,3105.9,3103.3,0.08398747]
[1767365431011,7.92326512,3107.8,3104.7,0.08398747]
[1767365431223,7.92326512,3107.8,3105.2,0.06619438]
[1767365431521,4.59602863,3104.9,3103.5,2.6e-07]
[1767365431739,4.59602863,3105.0,3103.6,0.844]
[1767365432015,6.43728474,3106.9,3103.7,8.08418261]
[1767365432016,4.59602863,3105.6,3103.7,8.08418261]
[1767365432232,7.92326512,3106.9,3103.8,0.16]
[1767365432517,7.92326512,3105.7,3101.6,8.08418261]
[1767365432829,4.59602863,3103.9,3101.8,8.08418261]
[1767365432979,7.92326512,3104.6,3100.2,8.08418261]
[1767365432980,0.844,3103.8,3100.2,8.08418261]
[1767365433178,0.96562,3103.3,3100.4,8.08418261]
[1767365433379,0.96562,3103.3,3100.8,3.441777]
[1767365433380,0.96562,3102.6,3100.8,3.441777]
[1767365433583,3.22237618,3103.3,3100.6,4.323275]
[1767365433881,0.844,3103.4,3100.7,0.03225078]
[1767365434085,0.844,3103.6,3101.0,12.287098]
[1767365434286,7.92326512,3104.8,3101.2,8.08418261]
[1767365434495,9.66121344,3105.2,3101.2,8.08418261]
[1767365434496,7.92326512,3104.4,3101.2,8.08418261]
[1767365434705,0.96562,3103.4,3101.5,0.16]
[1767365434891,0.96562,3103.4,3101.7,7.750832]
[1767365435219,4.59602863,3103.1,3101.4,8.08418261]
[1767365435385,4.59602863,3102.7,3100.2,12.127098]
[1767365435578,4.59602863,3102.1,3100.2,6.048396]
[1767365435802,0.843,3102.5,3100.2,6.048396]
[1767365436005,4.59602863,3101.4,3100.3,0.03225494]
[1767365436206,0.96562,3100.4,3098.1,3.22778139]
[1767365436406,1.80862,3100.8,3098.3,12.127098]
[1767365436591,0.7398899,3103.2,3098.2,1.1311964]
[1767365436592,11.14512219,3103.8,3098.8,9.71545897]
[1767365436791,4.59602863,3102.1,3099.7,0.16]
[1767365436990,4.59602863,3102.1,3099.5,8.08418261]
[1767365436991,0.843,3102.0,3099.9,4.79953]
[1767365437282,0.843,3102.0,3099.9,2.668166]
[1767365437283,0.96562,3101.7,3099.9,2.668166]
[1767365437499,4.59602863,3100.7,3098.4,12.127098]
[1767365437721,5.43902863,3100.7,3098.6,6.143775]
[1767365437937,4.59602863,3100.6,3098.8,7.350756]
[1767365438235,0.843,3101.4,3099.1,8.08418261]
[1767365438438,0.843,3101.4,3099.2,12.127098]
[1767365438839,0.843,3101.4,3098.9,0.8958669]
[1767365438840,4.59602863,3102.0,3099.5,0.16]
[1767365439140,5.43902863,3101.9,3099.7,6.665803]
[1767365439348,0.843,3101.8,3099.9,2.524787]
[1767365439518,0.843,3101.8,3100.1,4.484707]
[1767365439707,4.59602863,3103.2,3100.4,0.16]
[1767365439905,3.22206469,3103.6,3100.6,5.851203]
[1767365439906,4.59602863,3102.6,3100.6,5.851203]
[1767365440168,0.843,3103.1,3100.8,11.006241]
[1767365440449,4.59602863,3102.9,3100.5,8.08418261]
[1767365440615,4.59602863,3103.2,3100.7,12.287098]
[1767365440946,7.92326512,3103.2,3099.9,2.609354]
[1767365441247,4.59602863,3101.2,3099.3,8.08418261]
[1767365441447,0.96562,3100.7,3099.4,0.0322643]
[1767365441614,0.96562,3100.6,3099.2,7.399255]
[1767365441819,0.96562,3101.2,3099.4,4.695127]
[1767365442149,0.843,3101.7,3099.6,12.127098]
[1767365442150,0.96562,3101.7,3099.6,12.127098]
[1767365442368,0.843,3102.0,3099.6,3.412099]
[1767365442656,4.59602863,3102.1,3099.6,11.217435]
[1767365442815,0.96562,3101.4,3099.6,8.457288]
[1767365443021,7.92326512,3102.3,3099.8,6.82347]
[1767365443350,0.002,3102.1,3100.1,8.24418261]
[1767365443555,4.59602863,3101.7,3100.3,8.679777]
[1767365443869,4.59602863,3101.7,3100.2,0.844]
[1767365443870,4.59602863,3101.2,3100.1,8.08418261]
[1767365444057,4.59602863,3100.7,3099.4,3.87058]
[1767365444223,4.59602863,3100.7,3098.9,8.24418261]
[1767365444224,4.59602863,3100.7,3099.7,8.708011]
[1767365444426,4.54602863,3101.7,3100.0,0.16]
[1767365444632,4.59602863,3101.9,3100.3,12.127098]
[1767365444947,4.59602863,3101.9,3100.4,0.844]
[1767365445187,4.59602863,3103.2,3100.8,8.08418261]
[1767365445387,0.08398747,3106.7,3100.7,12.126098]
[1767365445388,7.92326512,3106.8,3102.2,8.08418261]
[1767365445605,1.161,3111.0,3103.4,4.8575947]
[1767365445606,4.59602863,3106.9,3103.4,4.8575947]
[1767365445752,4.59602863,3105.6,3103.5,12.126098]
[1767365446081,4.59602863,3105.6,3102.3,3.30845508]
[1767365446082,4.59602863,3104.1,3102.9,0.843]
[1767365446394,4.59602863,3104.1,3101.9,3.2237623]
[1767365446395,0.09179264,3103.3,3101.3,8.08418261]
[1767365446692,0.09179264,3103.3,3100.9,1.67161098]
[1767365446693,4.59602863,3102.7,3101.4,0.0322435]
[1767365446875,4.59602863,3102.7,3100.3,0.03225494]
[1767365447082,0.843,3103.3,3100.6,3.22510461]
[1767365447083,4.59602863,3102.3,3100.6,3.22510461]
[1767365447382,4.59602863,3102.8,3100.8,7.155793]
[1767365447586,4.59602863,3102.3,3101.0,5.84435]
[1767365447773,4.59602863,3102.3,3099.5,0.46949055]
[1767365447774,4.59602863,3101.8,3100.5,2.424904]
[1767365448084,4.59602863,3101.8,3099.5,0.46949055]
[1767365448085,4.54602863,3100.8,3099.5,1.31249055]
[1767365448298,0.843,3101.8,3099.3,9.408428]
[1767365448516,0.843,3101.8,3098.6,9.408428]
[1767365448517,4.59602863,3100.2,3098.6,9.408428]
[1767365448799,4.59602863,3100.2,3098.5,0.001]
[1767365448800,7.92326512,3100.8,3098.8,6.306034]
[1767365448952,7.92326512,3100.8,3098.5,0.001]
[1767365448953,0.843,3100.7,3098.6,5.052713]
[1767365449295,4.59602863,3099.8,3098.7,0.5053713]
[1767365449464,0.003,3101.6,3098.8,0.5]
[1767365449465,4.59602863,3100.5,3098.8,0.5]
[1767365449665,4.59602863,3100.5,3098.9,2.084352]
[1767365449987,4.59602863,3100.0,3098.8,0.5]
[1767365450202,4.59602863,3100.0,3098.5,0.001]
[1767365450403,4.59602863,3100.1,3098.5,0.844]
[1767365450584,0.843,3100.5,3098.6,3.17441]
[1767365450906,5.44400154,3100.4,3098.7,0.03227159]
[1767365451103,5.44400154,3099.3,3097.4,9.408428]
[1767365451305,5.44400154,3099.3,3097.3,8.08418261]
[1767365451306,5.44400154,3099.3,3097.6,5.449971]
[1767365451476,5.44400154,3099.3,3097.3,8.08418261]
[1767365451672,5.44400154,3098.7,3097.1,3.22880009]
[1767365451906,5.44400154,3098.7,3097.2,0.32288001]
[1767365451907,5.44400154,3098.4,3097.2,0.32288001]
[1767365452112,2.641339,3097.5,3095.3,8.08418261]
[1767365452282,7.92326512,3098.6,3095.6,9.408428]
[1767365452283,6.28700154,3098.0,3095.6,9.408428]
[1767365452609,5.44400154,3097.5,3095.3,3.230687]
[1767365452837,0.843,3097.4,3095.4,9.408428]
[1767365453014,5.44400154,3097.5,3095.6,7.869876]
[1767365453387,0.843,3097.4,3096.0,0.001]
[1767365453883,7.92326512,3096.4,3093.5,3.58733]
[1767365454123,7.92326512,3096.4,3092.1,3.23501404]
[1767365454124,7.92326512,3096.4,3094.4,8.422499]
[1767365454336,2.71767,3096.0,3094.5,0.8422499]
[1767365454626,0.843,3095.9,3094.1,9.36543]
[1767365454839,7.92326512,3097.4,3094.9,5.44400154]
[1767365454987,0.843,3097.7,3095.7,2.409063]
[1767365455186,7.92326512,3098.4,3095.7,3.0071]
[1767365455502,7.92326512,3098.0,3095.2,0.844]
[1767365455812,7.92326512,3097.8,3095.4,2.572851]
[1767365456314,9.42855689,3097.4,3095.3,0.40748239]
[1767365456514,10.27155689,3097.3,3094.7,3.573797]
[1767365456682,9.42855689,3097.1,3094.7,3.142412]
[1767365456882,9.42855689,3097.1,3094.8,0.0162395]
[1767365457090,9.42855689,3098.7,3095.8,5.44400154]
[1767365457392,9.42855689,3098.3,3095.9,9.408428]
[1767365457592,9.42855689,3098.3,3096.0,0.9408428]
[1767365457823,9.42855689,3098.1,3095.7,9.408428]
[1767365458018,9.42855689,3097.9,3095.0,5.44400154]
[1767365458314,12.99383979,3098.5,3095.1,3.001049]
[1767365458315,9.42855689,3097.7,3095.1,3.001049]
[1767365458615,18.35385386,3098.5,3094.4,5.44400154]
[1767365458616,9.42855689,3097.5,3094.4,5.44400154]
[1767365458814,9.42855689,3097.5,3093.8,9.33164838]
[1767365458815,9.42855689,3097.1,3094.5,0.01624004]
[1767365459003,9.42855689,3096.9,3094.5,0.01624004]
[1767365459204,9.42855689,3096.8,3094.0,5.844038]
[1767365459406,9.42855689,3096.4,3094.0,3.685859]
[1767365459716,0.54502214,3097.0,3094.3,9.33164838]
[1767365459922,0.08398747,3099.7,3094.3,9.33164838]
[1767365459923,0.08398747,3100.1,3097.2,0.99519139]
[1767365460108,9.42855689,3098.5,3095.5,9.408428]
[1767365460315,9.42855689,3098.3,3095.7,4.902918]
[1767365460505,9.42855689,3098.0,3095.6,0.9408428]
[1767365460828,0.843,3097.9,3096.3,4.878952]